[Event "Early-Titled-Tuesday-Blitz-March-26-2024"]
[Site "Chess.com"]
[Date "2024.03.26"]
[Round "11"]
[White "Kazmin_Semyon"]
[Black "PepeCuenca"]
[Result "0-1"]
[WhiteElo "2595"]
[BlackElo "2734"]
[TimeControl "180+1"]
[EndTime "10:05:34 PDT"]
[Termination "PepeCuenca won by checkmate"]

1. e4 {[%clk 0:03:00.9]} 1... c5 {[%clk 0:03:00.3]} 2. Nf3 {[%clk 0:03:01.1]}
2... Nc6 {[%clk 0:03:00.3]} 3. d4 {[%clk 0:03:01.7]} 3... cxd4 {[%clk
0:03:01.2]} 4. Nxd4 {[%clk 0:03:02.6]} 4... e5 {[%clk 0:03:01.7]} 5. Nb5 {[%clk
0:03:01.3]} 5... d6 {[%clk 0:03:01.8]} 6. N1c3 {[%clk 0:03:01.6]} 6... a6 {[%clk
0:03:00.2]} 7. Na3 {[%clk 0:03:01.8]} 7... Be7 {[%clk 0:03:00.8]} 8. Nc4 {[%clk
0:02:59.4]} 8... b5 {[%clk 0:03:00.6]} 9. Ne3 {[%clk 0:02:59.7]} 9... Nf6 {[%clk
0:03:01.3]} 10. g3 {[%clk 0:02:59.6]} 10... h5 {[%clk 0:03:01.5]} 11. Bg2 {[%clk
0:03:00.2]} 11... h4 {[%clk 0:03:01.6]} 12. O-O {[%clk 0:03:00.8]} 12... h3
{[%clk 0:03:01.9]} 13. Bh1 {[%clk 0:03:01.5]} 13... O-O {[%clk 0:03:00.9]} 14.
Ncd5 {[%clk 0:02:59.4]} 14... Nxd5 {[%clk 0:02:51.5]} 15. Nxd5 {[%clk
0:02:50.3]} 15... Bg5 {[%clk 0:02:41.9]} 16. c3 {[%clk 0:02:48.2]} 16... Bxc1
{[%clk 0:02:39.1]} 17. Rxc1 {[%clk 0:02:49.1]} 17... Be6 {[%clk 0:02:39.4]} 18.
Qh5 {[%clk 0:02:45.8]} 18... Ne7 {[%clk 0:02:25.7]} 19. Ne3 {[%clk 0:02:41.2]}
19... Qd7 {[%clk 0:01:55.2]} 20. a3 {[%clk 0:02:40.6]} 20... Rad8 {[%clk
0:01:31.1]} 21. g4 {[%clk 0:02:28.5]} 21... Ng6 {[%clk 0:01:10.4]} 22. Qxh3
{[%clk 0:02:25.5]} 22... Nf4 {[%clk 0:01:10.7]} 23. Qf3 {[%clk 0:02:25.7]} 23...
g6 {[%clk 0:01:03.7]} 24. Rcd1 {[%clk 0:02:13.7]} 24... Kg7 {[%clk 0:01:00.1]}
25. Rfe1 {[%clk 0:01:47.5]} 25... Rh8 {[%clk 0:00:58.5]} 26. Bg2 {[%clk
0:01:48.1]} 26... Rh7 {[%clk 0:00:44.1]} 27. Rd2 {[%clk 0:01:30.5]} 27... Rdh8
{[%clk 0:00:35.3]} 28. Red1 {[%clk 0:01:26.6]} 28... Rxh2 {[%clk 0:00:33.2]} 29.
Rxd6 {[%clk 0:01:27.1]} 29... Qe7 {[%clk 0:00:31.6]} 30. R6d2 {[%clk 0:00:32.6]}
30... Nxg2 {[%clk 0:00:28.6]} 31. Nf1 {[%clk 0:00:08.9]} 31... Qh4 {[%clk
0:00:18.1]} 32. Qg3 {[%clk 0:00:05.5]} 32... Qxg3 {[%clk 0:00:16.6]} 33. fxg3
{[%clk 0:00:06.4]} 33... Rh1+ {[%clk 0:00:06.5]} 34. Kxg2 {[%clk 0:00:06.9]}
34... Bxg4 {[%clk 0:00:06.8]} 35. Re1 {[%clk 0:00:07.3]} 35... Be6 {[%clk
0:00:03.3]} 36. Kf3 {[%clk 0:00:02.7]} 36... Rg1 {[%clk 0:00:03.1]} 37. Rf2
{[%clk 0:00:02.8]} 37... Rhh1 {[%clk 0:00:03.2]} 38. Ke3 {[%clk 0:00:01.8]}
38... Bc4 {[%clk 0:00:03.5]} 39. Rd1 {[%clk 0:00:01.6]} 39... Rxf1 {[%clk
0:00:03.8]} 40. Rfxf1 {[%clk 0:00:01.4]} 40... Rxf1 {[%clk 0:00:04.7]} 41. Rd7
{[%clk 0:00:02.2]} 41... Rb1 {[%clk 0:00:04.2]} 42. Rd1 {[%clk 0:00:02]} 42...
Rxd1 {[%clk 0:00:04.1]} 43. Kf3 {[%clk 0:00:02.6]} 43... Rd3+ {[%clk 0:00:04.2]}
44. Kg4 {[%clk 0:00:02.9]} 44... Rd2 {[%clk 0:00:04.4]} 45. b4 {[%clk
0:00:03.8]} 45... Ra2 {[%clk 0:00:04.3]} 46. a4 {[%clk 0:00:04.3]} 46... Rxa4
{[%clk 0:00:04.5]} 47. Kg5 {[%clk 0:00:04.5]} 47... Ra3 {[%clk 0:00:04.5]} 48.
g4 {[%clk 0:00:05.1]} 48... f6+ {[%clk 0:00:04.9]} 49. Kh4 {[%clk 0:00:05.9]}
49... g5+ {[%clk 0:00:05.1]} 50. Kh5 {[%clk 0:00:06.4]} 50... Bf7# {[%clk
0:00:05.4]} 0-1

[Event "Early-Titled-Tuesday-Blitz-March-26-2024"]
[Site "Chess.com"]
[Date "2024.03.26"]
[Round "11"]
[White "amylazy"]
[Black "kriscacco"]
[Result "0-1"]
[WhiteElo "2427"]
[BlackElo "2220"]
[TimeControl "180+1"]
[EndTime "10:05:35 PDT"]
[Termination "kriscacco won on time"]

1. d4 {[%clk 0:03:00.9]} 1... g6 {[%clk 0:02:59.1]} 2. e4 {[%clk 0:03:00.5]}
2... Bg7 {[%clk 0:02:59.4]} 3. Nc3 {[%clk 0:02:59.8]} 3... d6 {[%clk 0:02:59.6]}
4. Be3 {[%clk 0:02:59.8]} 4... c6 {[%clk 0:02:59.2]} 5. Nf3 {[%clk 0:03:00.4]}
5... Nd7 {[%clk 0:02:58.8]} 6. Qd2 {[%clk 0:03:00.9]} 6... Qc7 {[%clk
0:02:58.6]} 7. Bd3 {[%clk 0:03:01.2]} 7... b5 {[%clk 0:02:58.6]} 8. O-O {[%clk
0:02:53.5]} 8... a6 {[%clk 0:02:58.5]} 9. Rfe1 {[%clk 0:02:52.2]} 9... Bb7
{[%clk 0:02:57.5]} 10. a3 {[%clk 0:02:48.5]} 10... e5 {[%clk 0:02:54.4]} 11.
dxe5 {[%clk 0:02:44.3]} 11... dxe5 {[%clk 0:02:54]} 12. Rad1 {[%clk 0:02:37.6]}
12... Ngf6 {[%clk 0:02:52.8]} 13. Bh6 {[%clk 0:02:35.4]} 13... O-O {[%clk
0:02:50.2]} 14. Bxg7 {[%clk 0:02:34.7]} 14... Kxg7 {[%clk 0:02:50.4]} 15. Qg5
{[%clk 0:02:33]} 15... Rfe8 {[%clk 0:02:48.8]} 16. Nh4 {[%clk 0:02:32.5]} 16...
Kh8 {[%clk 0:02:42.7]} 17. Be2 {[%clk 0:02:31.8]} 17... Re6 {[%clk 0:02:19.8]}
18. Bf3 {[%clk 0:02:11.4]} 18... Nc5 {[%clk 0:01:54.9]} 19. b4 {[%clk
0:02:07.2]} 19... Ncd7 {[%clk 0:01:52.8]} 20. Ne2 {[%clk 0:02:04.2]} 20... Nb6
{[%clk 0:01:51.6]} 21. Ng3 {[%clk 0:01:48.8]} 21... Nc4 {[%clk 0:01:49.8]} 22.
Rd3 {[%clk 0:01:34.2]} 22... Rd8 {[%clk 0:01:45.6]} 23. Red1 {[%clk 0:01:34]}
23... Rxd3 {[%clk 0:01:42.2]} 24. Rxd3 {[%clk 0:01:34.9]} 24... Rd6 {[%clk
0:01:38.5]} 25. h3 {[%clk 0:01:34.2]} 25... Bc8 {[%clk 0:01:33.8]} 26. Bg4
{[%clk 0:01:30.8]} 26... Bxg4 {[%clk 0:01:27.6]} 27. hxg4 {[%clk 0:01:31.7]}
27... Ng8 {[%clk 0:01:25]} 28. Nf3 {[%clk 0:00:54.3]} 28... f6 {[%clk
0:01:21.4]} 29. Qc1 {[%clk 0:00:52.2]} 29... Qd7 {[%clk 0:01:19.7]} 30. Ne1
{[%clk 0:00:34.8]} 30... Qxg4 {[%clk 0:01:16.2]} 31. Rxd6 {[%clk 0:00:32.8]}
31... Nxd6 {[%clk 0:01:15.3]} 32. Qe3 {[%clk 0:00:29.6]} 32... Nc4 {[%clk
0:01:11.4]} 33. Qd3 {[%clk 0:00:29.6]} 33... h5 {[%clk 0:01:01.6]} 34. Nf3
{[%clk 0:00:28.8]} 34... Qe6 {[%clk 0:00:57.9]} 35. Ne2 {[%clk 0:00:27.8]} 35...
Kg7 {[%clk 0:00:55.9]} 36. Nc1 {[%clk 0:00:26.3]} 36... Qd6 {[%clk 0:00:51.4]}
37. Qe2 {[%clk 0:00:21.3]} 37... c5 {[%clk 0:00:48.2]} 38. Nd3 {[%clk
0:00:19.6]} 38... cxb4 {[%clk 0:00:45.5]} 39. axb4 {[%clk 0:00:20.5]} 39... Ne7
{[%clk 0:00:42.6]} 40. Nc5 {[%clk 0:00:18.7]} 40... a5 {[%clk 0:00:41]} 41. Nb7
{[%clk 0:00:18]} 41... Qxb4 {[%clk 0:00:39.2]} 42. Qd3 {[%clk 0:00:17.7]} 42...
a4 {[%clk 0:00:35.5]} 43. Nd8 {[%clk 0:00:14.5]} 43... a3 {[%clk 0:00:32.9]} 44.
Ne6+ {[%clk 0:00:13.8]} 44... Kf7 {[%clk 0:00:28.5]} 45. Nd8+ {[%clk 0:00:13.5]}
45... Ke8 {[%clk 0:00:27.8]} 46. Nb7 {[%clk 0:00:12.9]} 46... a2 {[%clk
0:00:25.5]} 47. Qd8+ {[%clk 0:00:12.1]} 47... Kf7 {[%clk 0:00:25.7]} 48. Qa8
{[%clk 0:00:05.7]} 48... Qb1+ {[%clk 0:00:24.5]} 49. Kh2 {[%clk 0:00:06.2]}
49... a1=Q {[%clk 0:00:23.6]} 50. Nd8+ {[%clk 0:00:05.8]} 50... Ke8 {[%clk
0:00:23.8]} 51. Qb7 {[%clk 0:00:01.9]} 51... Kxd8 {[%clk 0:00:23.1]} 0-1

[Event "Early-Titled-Tuesday-Blitz-March-26-2024"]
[Site "Chess.com"]
[Date "2024.03.26"]
[Round "11"]
[White "Veleamater"]
[Black "kritipatel"]
[Result "0-1"]
[WhiteElo "2394"]
[BlackElo "2253"]
[TimeControl "180+1"]
[EndTime "10:05:37 PDT"]
[Termination "kritipatel won on time"]

1. g3 {[%clk 0:03:00.9]} 1... d5 {[%clk 0:02:59.2]} 2. Bg2 {[%clk 0:03:01.8]}
2... Nf6 {[%clk 0:02:59.4]} 3. d3 {[%clk 0:03:02.5]} 3... c5 {[%clk 0:02:59.8]}
4. Nf3 {[%clk 0:03:03.1]} 4... Nc6 {[%clk 0:03:00.2]} 5. O-O {[%clk 0:03:03.7]}
5... e5 {[%clk 0:03:00.6]} 6. h3 {[%clk 0:03:04.2]} 6... Bd6 {[%clk 0:03:01.1]}
7. Nc3 {[%clk 0:03:04.6]} 7... O-O {[%clk 0:03:01]} 8. e4 {[%clk 0:03:05.2]}
8... d4 {[%clk 0:02:58.4]} 9. Ne2 {[%clk 0:03:05]} 9... Be6 {[%clk 0:02:57.7]}
10. Ne1 {[%clk 0:03:05.2]} 10... Qd7 {[%clk 0:02:57.8]} 11. Kh2 {[%clk
0:03:05.1]} 11... h6 {[%clk 0:02:48.6]} 12. f4 {[%clk 0:03:05.1]} 12... Qe7
{[%clk 0:02:41.4]} 13. f5 {[%clk 0:03:05]} 13... Bd7 {[%clk 0:02:41.1]} 14. g4
{[%clk 0:03:05.4]} 14... Nh7 {[%clk 0:02:39.9]} 15. Rf2 {[%clk 0:03:05.8]} 15...
Qh4 {[%clk 0:02:34.5]} 16. Ng3 {[%clk 0:03:05.1]} 16... g6 {[%clk 0:02:29.7]}
17. Nf3 {[%clk 0:03:01.4]} 17... Qf6 {[%clk 0:02:18.4]} 18. Bxh6 {[%clk
0:02:59.4]} 18... Rfe8 {[%clk 0:02:10.8]} 19. g5 {[%clk 0:02:50.9]} 19... Qd8
{[%clk 0:01:58.6]} 20. fxg6 {[%clk 0:02:50.8]} 20... fxg6 {[%clk 0:01:56.3]} 21.
Nh4 {[%clk 0:02:50.8]} 21... Ne7 {[%clk 0:01:53.1]} 22. Bf3 {[%clk 0:02:48.4]}
22... Qc8 {[%clk 0:01:48.9]} 23. Qe2 {[%clk 0:02:45.8]} 23... Bxh3 {[%clk
0:01:47.5]} 24. Rg1 {[%clk 0:02:41.8]} 24... Be6 {[%clk 0:01:47.1]} 25. b3
{[%clk 0:02:34.8]} 25... b5 {[%clk 0:01:39.1]} 26. Kh1 {[%clk 0:02:21.7]} 26...
c4 {[%clk 0:01:37.3]} 27. bxc4 {[%clk 0:02:20.3]} 27... bxc4 {[%clk 0:01:37.8]}
28. Rh2 {[%clk 0:02:20.3]} 28... cxd3 {[%clk 0:01:28.1]} 29. cxd3 {[%clk
0:02:20]} 29... Rb8 {[%clk 0:01:23.4]} 30. Nf1 {[%clk 0:02:18.5]} 30... Ba3
{[%clk 0:01:21.8]} 31. Bg4 {[%clk 0:02:00.9]} 31... Rb1 {[%clk 0:01:17]} 32.
Bxe6+ {[%clk 0:01:55]} 32... Qxe6 {[%clk 0:01:17.9]} 33. Qf3 {[%clk 0:01:52.9]}
33... Bc1 {[%clk 0:01:13.8]} 34. Ng3 {[%clk 0:01:25.6]} 34... Qb6 {[%clk
0:01:02.9]} 35. Ng2 {[%clk 0:00:57.1]} 35... Bxg5 {[%clk 0:00:57.4]} 36. Bxg5
{[%clk 0:00:43.3]} 36... Nxg5 {[%clk 0:00:53.7]} 37. Qg4 {[%clk 0:00:43.1]}
37... Rxg1+ {[%clk 0:00:52.2]} 38. Kxg1 {[%clk 0:00:43.1]} 38... Qb1+ {[%clk
0:00:48.1]} 39. Nf1 {[%clk 0:00:42]} 39... Qc1 {[%clk 0:00:45.3]} 40. Nh4 {[%clk
0:00:22.9]} 40... Rf8 {[%clk 0:00:41.6]} 41. Rf2 {[%clk 0:00:20.3]} 41... Rxf2
{[%clk 0:00:36.4]} 42. Kxf2 {[%clk 0:00:19.4]} 42... Kg7 {[%clk 0:00:31.8]} 43.
Nf3 {[%clk 0:00:14.8]} 43... Nxf3 {[%clk 0:00:30.1]} 44. Qxf3 {[%clk 0:00:13]}
44... Qc2+ {[%clk 0:00:25.3]} 45. Kg1 {[%clk 0:00:12.8]} 45... Qxa2 {[%clk
0:00:23.6]} 46. Qg3 {[%clk 0:00:13.1]} 46... a5 {[%clk 0:00:22.6]} 47. Qxe5+
{[%clk 0:00:13.2]} 47... Kf7 {[%clk 0:00:21]} 48. Qxd4 {[%clk 0:00:13.5]} 48...
a4 {[%clk 0:00:20.8]} 49. Ne3 {[%clk 0:00:13.6]} 49... a3 {[%clk 0:00:20.1]} 50.
Nc4 {[%clk 0:00:13.6]} 50... Qb1+ {[%clk 0:00:19.5]} 51. Kf2 {[%clk 0:00:13.9]}
51... a2 {[%clk 0:00:20.1]} 52. Ne5+ {[%clk 0:00:12.9]} 52... Ke6 {[%clk
0:00:18.2]} 53. Ke3 {[%clk 0:00:09.3]} 53... a1=Q {[%clk 0:00:17.8]} 54. Qd7+
{[%clk 0:00:09.1]} 54... Kxe5 {[%clk 0:00:17.8]} 55. d4+ {[%clk 0:00:08.7]}
55... Kf6 {[%clk 0:00:17.5]} 56. Qd6+ {[%clk 0:00:08.9]} 56... Kf7 {[%clk
0:00:17.4]} 0-1

[Event "Early-Titled-Tuesday-Blitz-March-26-2024"]
[Site "Chess.com"]
[Date "2024.03.26"]
[Round "11"]
[White "Tugrik1969"]
[Black "ChessSwole"]
[Result "0-1"]
[WhiteElo "2503"]
[BlackElo "2676"]
[TimeControl "180+1"]
[EndTime "10:05:48 PDT"]
[Termination "ChessSwole won on time"]

1. d4 {[%clk 0:03:00.9]} 1... e6 {[%clk 0:02:59.7]} 2. c4 {[%clk 0:03:00.9]}
2... f5 {[%clk 0:02:59.5]} 3. Nf3 {[%clk 0:03:01.1]} 3... Nf6 {[%clk 0:02:59.4]}
4. g3 {[%clk 0:03:01.7]} 4... Be7 {[%clk 0:02:59.6]} 5. Bg2 {[%clk 0:03:02]}
5... O-O {[%clk 0:03:00.2]} 6. O-O {[%clk 0:03:00.2]} 6... d6 {[%clk 0:03:00.1]}
7. b4 {[%clk 0:03:00.2]} 7... Qe8 {[%clk 0:02:54]} 8. Bb2 {[%clk 0:02:57.6]}
8... Qh5 {[%clk 0:02:43.8]} 9. Nbd2 {[%clk 0:02:56.3]} 9... a5 {[%clk
0:02:36.3]} 10. b5 {[%clk 0:02:55.5]} 10... a4 {[%clk 0:02:35.8]} 11. a3 {[%clk
0:02:53.5]} 11... Ne4 {[%clk 0:02:29.1]} 12. e3 {[%clk 0:02:29.1]} 12... Qg6
{[%clk 0:02:06.9]} 13. Qc2 {[%clk 0:02:21.9]} 13... Nd7 {[%clk 0:02:05.8]} 14.
Nxe4 {[%clk 0:02:15.8]} 14... fxe4 {[%clk 0:02:06.7]} 15. Nd2 {[%clk 0:02:16.2]}
15... d5 {[%clk 0:01:59.4]} 16. f3 {[%clk 0:01:59.4]} 16... Bg5 {[%clk
0:01:53.4]} 17. Rae1 {[%clk 0:01:49.2]} 17... Qh6 {[%clk 0:01:40.9]} 18. f4
{[%clk 0:01:49]} 18... Bd8 {[%clk 0:01:40.9]} 19. Bc3 {[%clk 0:01:15]} 19... Nf6
{[%clk 0:01:29.6]} 20. Bb4 {[%clk 0:01:12.1]} 20... Rf7 {[%clk 0:01:22.4]} 21.
Nb1 {[%clk 0:01:01.3]} 21... c6 {[%clk 0:01:13.5]} 22. Nc3 {[%clk 0:00:51.4]}
22... Bd7 {[%clk 0:01:09.3]} 23. bxc6 {[%clk 0:00:45.4]} 23... Bxc6 {[%clk
0:01:07.9]} 24. h3 {[%clk 0:00:32.2]} 24... Qg6 {[%clk 0:01:07.5]} 25. Kh2
{[%clk 0:00:31.7]} 25... h5 {[%clk 0:01:07.1]} 26. Rc1 {[%clk 0:00:29.4]} 26...
Bc7 {[%clk 0:00:56.5]} 27. Qe2 {[%clk 0:00:28.3]} 27... Kh7 {[%clk 0:00:44.6]}
28. Nb5 {[%clk 0:00:28.4]} 28... Bb6 {[%clk 0:00:34.1]} 29. Nd6 {[%clk
0:00:25.1]} 29... Rd7 {[%clk 0:00:34.2]} 30. c5 {[%clk 0:00:24.8]} 30... Bc7
{[%clk 0:00:32.5]} 31. Rf2 {[%clk 0:00:20.1]} 31... Rg8 {[%clk 0:00:30.1]} 32.
Rcf1 {[%clk 0:00:18.3]} 32... Qh6 {[%clk 0:00:26.8]} 33. f5 {[%clk 0:00:16.7]}
33... exf5 {[%clk 0:00:24.4]} 34. Rxf5 {[%clk 0:00:16.8]} 34... h4 {[%clk
0:00:23.5]} 35. g4 {[%clk 0:00:15.6]} 35... Qg6 {[%clk 0:00:21.8]} 36. Qf2
{[%clk 0:00:14.1]} 36... Rgd8 {[%clk 0:00:20.6]} 37. Qxh4+ {[%clk 0:00:13.3]}
37... Kg8 {[%clk 0:00:21.3]} 38. Rxf6 {[%clk 0:00:13.3]} 38... gxf6 {[%clk
0:00:21.3]} 39. Rxf6 {[%clk 0:00:12.7]} 39... Qg7 {[%clk 0:00:21.9]} 40. g5
{[%clk 0:00:10.8]} 40... b6 {[%clk 0:00:21.1]} 41. Qh5 {[%clk 0:00:10.5]} 41...
Qh7 {[%clk 0:00:17.6]} 42. Rg6+ {[%clk 0:00:10]} 42... Rg7 {[%clk 0:00:17.5]}
43. Rh6 {[%clk 0:00:09.3]} 43... bxc5 {[%clk 0:00:12]} 44. dxc5 {[%clk
0:00:08.5]} 44... d4 {[%clk 0:00:04.4]} 45. Rxh7 {[%clk 0:00:07.7]} 45... Rxh7
{[%clk 0:00:05.3]} 46. Qg6+ {[%clk 0:00:08.4]} 46... Rg7 {[%clk 0:00:05.8]} 47.
Qe6+ {[%clk 0:00:09]} 47... Kh8 {[%clk 0:00:06.4]} 48. exd4 {[%clk 0:00:07.1]}
48... Rf8 {[%clk 0:00:04.6]} 49. g6 {[%clk 0:00:05.3]} 49... Rd8 {[%clk
0:00:01.7]} 50. Kh1 {[%clk 0:00:04.7]} 50... Bd7 {[%clk 0:00:02.1]} 51. Nf7+
{[%clk 0:00:04.6]} 51... Kg8 {[%clk 0:00:02.1]} 52. Nh6+ {[%clk 0:00:04.2]}
52... Kh8 {[%clk 0:00:02.6]} 53. Qf6 {[%clk 0:00:03.5]} 53... e3 {[%clk
0:00:01.9]} 54. Nf7+ {[%clk 0:00:03.6]} 54... Kg8 {[%clk 0:00:02.5]} 0-1

[Event "Early-Titled-Tuesday-Blitz-March-26-2024"]
[Site "Chess.com"]
[Date "2024.03.26"]
[Round "11"]
[White "Juicy_Fork"]
[Black "Goryachkina"]
[Result "0-1"]
[WhiteElo "2540"]
[BlackElo "2688"]
[TimeControl "180+1"]
[EndTime "10:05:49 PDT"]
[Termination "Goryachkina won by checkmate"]

1. e4 {[%clk 0:02:51.1]} 1... c5 {[%clk 0:02:59.6]} 2. Nf3 {[%clk 0:02:50]} 2...
Nc6 {[%clk 0:02:59.6]} 3. Bb5 {[%clk 0:02:49.8]} 3... g6 {[%clk 0:02:59.4]} 4.
O-O {[%clk 0:02:50.3]} 4... Bg7 {[%clk 0:02:59.6]} 5. c3 {[%clk 0:02:51]} 5...
Nf6 {[%clk 0:02:58.7]} 6. Qa4 {[%clk 0:02:51.4]} 6... O-O {[%clk 0:02:54.9]} 7.
d4 {[%clk 0:02:51.8]} 7... cxd4 {[%clk 0:02:44.4]} 8. cxd4 {[%clk 0:02:52.7]}
8... a6 {[%clk 0:02:43.2]} 9. Re1 {[%clk 0:02:52.4]} 9... d6 {[%clk 0:02:24.9]}
10. h3 {[%clk 0:02:45.6]} 10... Bd7 {[%clk 0:02:23]} 11. Bf1 {[%clk 0:02:39.6]}
11... Rc8 {[%clk 0:02:14.6]} 12. Nc3 {[%clk 0:02:35.1]} 12... b5 {[%clk
0:01:53.1]} 13. Qd1 {[%clk 0:02:28.2]} 13... b4 {[%clk 0:01:42]} 14. Nd5 {[%clk
0:02:25.9]} 14... Nxd5 {[%clk 0:01:34.5]} 15. exd5 {[%clk 0:02:26.8]} 15... Nb8
{[%clk 0:01:34.6]} 16. a3 {[%clk 0:02:09]} 16... bxa3 {[%clk 0:01:15.4]} 17.
Rxa3 {[%clk 0:02:09.9]} 17... e6 {[%clk 0:01:08.5]} 18. dxe6 {[%clk 0:02:06.4]}
18... Bxe6 {[%clk 0:01:08.3]} 19. d5 {[%clk 0:01:52.5]} 19... Bd7 {[%clk
0:00:59.8]} 20. Bxa6 {[%clk 0:01:49.3]} 20... Nxa6 {[%clk 0:00:57.9]} 21. Rxa6
{[%clk 0:01:50.2]} 21... Bb5 {[%clk 0:00:52.2]} 22. Ra3 {[%clk 0:01:41.8]} 22...
Ra8 {[%clk 0:00:43]} 23. Bf4 {[%clk 0:01:37.1]} 23... Qb6 {[%clk 0:00:39.9]} 24.
Be3 {[%clk 0:01:23]} 24... Qb7 {[%clk 0:00:38.4]} 25. Qb3 {[%clk 0:00:50.8]}
25... Rxa3 {[%clk 0:00:19.9]} 26. bxa3 {[%clk 0:00:51.7]} 26... Qa6 {[%clk
0:00:20.4]} 27. Bd4 {[%clk 0:00:47.6]} 27... Bxd4 {[%clk 0:00:16.3]} 28. Nxd4
{[%clk 0:00:47]} 28... Bc4 {[%clk 0:00:16.7]} 29. Qf3 {[%clk 0:00:45.2]} 29...
Qa5 {[%clk 0:00:12.8]} 30. Nc6 {[%clk 0:00:45]} 30... Qxe1+ {[%clk 0:00:12.6]}
31. Kh2 {[%clk 0:00:44]} 31... Re8 {[%clk 0:00:12.5]} 32. a4 {[%clk 0:00:26.4]}
32... Ba6 {[%clk 0:00:11.9]} 33. Qf6 {[%clk 0:00:20.4]} 33... Bb7 {[%clk
0:00:10.1]} 34. Qxd6 {[%clk 0:00:11.7]} 34... Bxc6 {[%clk 0:00:09.4]} 35. Qxc6
{[%clk 0:00:12.6]} 35... Qe5+ {[%clk 0:00:09.1]} 36. g3 {[%clk 0:00:12.9]} 36...
Rd8 {[%clk 0:00:09]} 37. a5 {[%clk 0:00:11.4]} 37... Qxd5 {[%clk 0:00:09.3]} 38.
Qb6 {[%clk 0:00:11]} 38... Ra8 {[%clk 0:00:04.3]} 39. a6 {[%clk 0:00:09.6]}
39... Qa2 {[%clk 0:00:04.6]} 40. Kg2 {[%clk 0:00:02.9]} 40... Qxa6 {[%clk
0:00:04.8]} 41. Qd4 {[%clk 0:00:03]} 41... Qa4 {[%clk 0:00:05.2]} 42. Qd5 {[%clk
0:00:03.1]} 42... Rc8 {[%clk 0:00:05.1]} 43. Qb7 {[%clk 0:00:02.4]} 43... Qc6+
{[%clk 0:00:05.3]} 44. Qxc6 {[%clk 0:00:02.6]} 44... Rxc6 {[%clk 0:00:06.2]} 45.
f3 {[%clk 0:00:03.5]} 45... h5 {[%clk 0:00:06.8]} 46. g4 {[%clk 0:00:04.4]}
46... Kg7 {[%clk 0:00:07.4]} 47. gxh5 {[%clk 0:00:04.1]} 47... gxh5 {[%clk
0:00:08.3]} 48. Kg3 {[%clk 0:00:04.6]} 48... Kg6 {[%clk 0:00:09]} 49. Kh4 {[%clk
0:00:05.5]} 49... Rc4+ {[%clk 0:00:09.2]} 50. f4 {[%clk 0:00:04.9]} 50... Rxf4+
{[%clk 0:00:09.1]} 51. Kg3 {[%clk 0:00:05.8]} 51... Rf6 {[%clk 0:00:09.3]} 52.
h4 {[%clk 0:00:06.7]} 52... Rf5 {[%clk 0:00:09]} 53. Kh3 {[%clk 0:00:07.6]}
53... Kf6 {[%clk 0:00:09.6]} 54. Kg3 {[%clk 0:00:08.5]} 54... Ke5 {[%clk
0:00:10.1]} 55. Kh3 {[%clk 0:00:09.4]} 55... Ke4 {[%clk 0:00:10.7]} 56. Kg3
{[%clk 0:00:10.3]} 56... Ke3 {[%clk 0:00:11.2]} 57. Kh3 {[%clk 0:00:11.2]} 57...
Rf6 {[%clk 0:00:11.3]} 58. Kg3 {[%clk 0:00:12.1]} 58... Rg6+ {[%clk 0:00:11.7]}
59. Kh3 {[%clk 0:00:13]} 59... Rg4 {[%clk 0:00:10.8]} 60. Kh2 {[%clk 0:00:13.9]}
60... Rxh4+ {[%clk 0:00:11.3]} 61. Kg3 {[%clk 0:00:14.4]} 61... Rg4+ {[%clk
0:00:11.8]} 62. Kh3 {[%clk 0:00:15.3]} 62... f5 {[%clk 0:00:12.2]} 63. Kh2
{[%clk 0:00:16.2]} 63... f4 {[%clk 0:00:12.8]} 64. Kh3 {[%clk 0:00:17.1]} 64...
f3 {[%clk 0:00:13.3]} 65. Kh2 {[%clk 0:00:18]} 65... f2 {[%clk 0:00:13.7]} 66.
Kh3 {[%clk 0:00:18.1]} 66... f1=Q+ {[%clk 0:00:14]} 67. Kh2 {[%clk 0:00:19]}
67... Qg2# {[%clk 0:00:14.5]} 0-1